fUSD/lending_fUSD_20260221
["ID","MTS","AMOUNT","RATE_DAILY","PERIOD"]
[406233497,1771645840811,-822.17856688,0.00017808,2]
[406233499,1771645840820,-822.17856688,0.00017808,2]
[406233501,1771645840829,-822.17856688,0.00017808,2]
[406233503,1771645840839,-822.17856688,0.00017808,2]
[406233506,1771645840848,-822.17856688,0.00017808,2]
[406233508,1771645840857,-822.17856688,0.00017808,2]
[406233509,1771645840866,-822.17856688,0.00017808,2]
[406233512,1771645840876,-822.17856688,0.00017808,2]
[406233514,1771645840884,-822.17856688,0.00017808,2]
[406233516,1771645840893,-822.17856688,0.00017808,2]
[406233518,1771645840902,-822.17856688,0.00017808,2]
[406233520,1771645840911,-822.17856688,0.00017808,2]
[406233522,1771645840920,-822.17856688,0.00017808,2]
[406233524,1771645840929,-822.17856688,0.00017808,2]
[406233526,1771645840938,-822.17856688,0.00017808,2]
[406233528,1771645840947,-822.17856688,0.00017808,2]
[406233530,1771645840956,-822.17856688,0.00017808,2]
[406233532,1771645840965,-822.17856688,0.00017808,2]
[406233534,1771645840975,-916.14183166,0.00017808,2]
[406233536,1771645840983,-916.14183166,0.00017808,2]
[406233538,1771645840992,-916.14183166,0.00017808,2]
[406233540,1771645841001,-916.14183166,0.00017808,2]
[406233542,1771645841011,-916.14183166,0.00017808,2]
[406233544,1771645841019,-916.14183166,0.00017808,2]
[406233546,1771645841028,-916.14183166,0.00017808,2]
[406233548,1771645841038,-800.0,0.00017808,2]
[406233550,1771645841047,-1102.0,0.00017828,2]
[406233552,1771645841056,-1102.0,0.00017832,2]
[406233554,1771645841065,-500.0,0.00017856,2]
[406233556,1771645841077,-200.0,0.00017856,2]
[406233558,1771645841086,-501.38512914,0.00017873,2]
[406233560,1771645841094,-503.18537404,0.00017873,2]
[406233562,1771645841104,-501.05660533,0.00017873,2]
[406233564,1771645841113,-500.95052506,0.00017873,2]
[406233566,1771645841123,-500.41653761,0.00017873,2]
[406233568,1771645841131,-246.364609,0.00017873,2]
[406233570,1771645841140,-168.71198045,0.00017873,2]
[406233572,1771645841151,-307.71196301,0.00017873,2]
[406233574,1771645841161,-230.31122448,0.00017873,2]
[406233576,1771645841170,-165.27434071,0.00017873,2]
[406233578,1771645841182,-500.0,0.00017873,2]
[406233580,1771645841191,-503.58870457,0.00017873,2]
[406233582,1771645841200,-500.0,0.00017873,2]
[406233584,1771645841209,-162.93997784,0.00017873,2]
[406233586,1771645841219,-501.37835228,0.00017873,2]
[406233588,1771645841228,-184.37223932,0.00017873,2]
[406233590,1771645841237,-503.5027165,0.00017873,2]
[406233592,1771645841246,-501.02670572,0.00017873,2]
[406233594,1771645841255,-167.41603795,0.00017873,2]
[406233596,1771645841264,-164.4744294,0.00017873,2]
[406233598,1771645841273,-500.0,0.00017873,2]
[406233600,1771645841283,-493.47361044,0.00017873,2]
[406233602,1771645841293,-500.0,0.00017873,2]
[406233604,1771645841302,-500.18211712,0.00017873,2]
[406233606,1771645841311,-502.63635996,0.00017873,2]
[406233608,1771645841320,-500.31194275,0.00017873,2]
[406233610,1771645841329,-500.49256887,0.00017873,2]
[406233612,1771645841339,-502.9045905,0.00017873,2]
[406233614,1771645841347,-500.0,0.00017873,2]
[406233616,1771645841357,-500.5604227,0.00017873,2]
[406233619,1771645841367,-273.0745408,0.00017873,2]
[406233621,1771645841377,-1102.0,0.00017876,2]
[406233622,1771645841386,-1014.91673742,0.00017882,2]
[406233625,1771645841396,-545.40134563,0.000179,2]
[406233627,1771645841406,-41631.97492146,0.000179,2]
[406233629,1771645841416,-1100.0,0.000179,2]
[406233631,1771645841425,-263.0,0.00017911,2]
[406233633,1771645841434,-1997.0,0.00017915,2]
[406233635,1771645841443,-1102.0,0.00017927,2]
[406233637,1771645841452,-1000.0,0.00017942,2]
[406233639,1771645841461,-700.0,0.00017963,2]
[406233641,1771645841470,-1000.0,0.0001797,2]
[406233643,1771645841479,-1743.9005063,0.0001797,2]
[406233645,1771645841488,-905.22771213,0.0001797,2]
[406233647,1771645841498,-500.0,0.0001797,2]
[406233649,1771645841507,-1000.0,0.0001797,2]
[406233651,1771645841516,-500.0,0.00017973,2]
[406233653,1771645841525,-500.0,0.00017973,2]
[406233654,1771645841534,-500.0,0.00017973,2]
[406233656,1771645841543,-500.0,0.00017973,2]
[406233659,1771645841552,-500.0,0.00017973,2]
[406233660,1771645841561,-500.0,0.00017973,2]
[406233662,1771645841570,-500.0,0.00017973,2]
[406233664,1771645841579,-500.0,0.00017973,2]
[406233665,1771645841588,-500.0,0.00017973,2]
[406233666,1771645841597,-500.0,0.00017973,2]
[406233667,1771645841607,-500.0,0.00017973,2]
[406233668,1771645841616,-500.0,0.00017973,2]
[406233669,1771645841625,-500.0,0.00017973,2]
[406233670,1771645841634,-500.0,0.00017973,2]
[406233671,1771645841643,-500.0,0.00017973,2]
[406233673,1771645841653,-500.50855099,0.00017973,2]
[406233675,1771645841661,-500.0,0.00017973,2]
[406233677,1771645841671,-500.62983422,0.00017973,2]
[406233678,1771645841680,-500.0,0.00017973,2]
[406233681,1771645841691,-500.0,0.00017973,2]
[406233683,1771645841700,-500.0,0.00017973,2]
[406233684,1771645841710,-342.76331381,0.00017973,2]
[406233686,1771645841720,-500.0,0.00017973,2]
[406233689,1771645841730,-619.14973919,0.00017973,2]
[406233690,1771645841739,-500.0,0.00017973,2]
[406233693,1771645841749,-568.38984139,0.00017973,2]
[406233694,1771645841758,-500.0,0.00017973,2]
[406233697,1771645841767,-500.0,0.00017973,2]
[406233698,1771645841777,-500.0,0.00017973,2]
[406233701,1771645841786,-500.0,0.00017973,2]
[406233702,1771645841795,-533.24438323,0.00017973,2]
[406233705,1771645841804,-500.0,0.00017973,2]
[406233707,1771645841814,-500.0,0.00017973,2]
[406233709,1771645841824,-500.0,0.00017973,2]
[406233711,1771645841833,-500.0,0.00017973,2]
[406233713,1771645841842,-500.0,0.00017973,2]
[406233715,1771645841852,-500.0,0.00017973,2]
[406233717,1771645841861,-502.50033053,0.00017973,2]
[406233719,1771645841870,-500.61890961,0.00017973,2]
[406233721,1771645841879,-500.98392686,0.00017973,2]
[406233723,1771645841888,-500.39813374,0.00017973,2]
[406233725,1771645841897,-500.0,0.00017973,2]
[406233726,1771645841906,-1102.0,0.00017977,2]
[406233728,1771645841915,-873.04835075,0.0001799,2]
[406233729,1771645841924,-300.0,0.00017999,2]
[406233731,1771645841933,-666.0,0.00017999,2]
[406233733,1771645841942,-192.94,0.00017999,2]
[406233735,1771645841951,-577.4,0.00017999,2]
[406233737,1771645841960,-577.4,0.00017999,2]
[406233739,1771645841969,-577.4,0.00017999,2]
[406233741,1771645841978,-577.4,0.00017999,2]
[406233743,1771645841986,-577.4,0.00017999,2]
[406233745,1771645841995,-384.27617011,0.00017999,2]
[406233746,1771645842005,-296.5196054,0.00017999,2]
[406233748,1771645842016,-150.41557459,0.00017999,2]
[406233750,1771645842024,-1301392.20157433,0.00018,2]
[406233775,1771645842254,-351.1447958,0.00018,2]
[406233777,1771645842266,-1185.97986445,0.00018,2]
[406233779,1771645842278,-748.26893567,0.00018,2]
[406233781,1771645842289,-4516.2373811,0.00018,2]
[406233783,1771645842299,-3604.8,0.00018,2]
[406233788,1771645842338,-404.40894837,0.00016004,2]
[406233790,1771645842347,-419.84444252,0.00016499,2]
[406233792,1771645842358,-588.00932753,0.00016499,2]
[406233795,1771645842369,-21774.12000578,0.00016499,2]
[406233849,1771645844877,-160.0,0.000163,2]
[406233850,1771645844887,-2291.06346435,0.00016499,2]
[406233851,1771645844898,-8323.3767327,0.00016499,2]
[406233852,1771645844925,-199.97493973,0.00016499,2]
[406233853,1771645844935,-1232.79227003,0.00016733,2]
[406233854,1771645844946,-10004.02368302,0.00016733,2]
[406233855,1771645844984,-7222.24352672,0.00016733,2]
[406233856,1771645845661,-3227.85761375,0.00016733,2]
[406233857,1771645845715,-677.84099362,0.00016733,2]
[406233858,1771645845926,-2536.98106893,0.00016733,2]
[406233859,1771645845937,-369.04281363,0.00016733,2]
[406233860,1771645944562,-300.0,0.00015797,2]
[406233861,1771645944600,-9400.01,0.00015798,2]
[406233862,1771645944682,-10000.01,0.00015798,2]
[406233863,1771645944828,-10000.01,0.00015798,2]
[406233864,1771645944951,-3460.712,0.00015798,2]
[406233865,1771645945000,-3078.586,0.00015798,2]
[406233866,1771645945067,-10000.01,0.00015798,2]
[406233867,1771645945176,-10000.01,0.00015798,2]
[406233868,1771645945297,-10000.01,0.00015798,2]
[406233869,1771645945415,-10000.01,0.00015798,2]
[406233870,1771645945522,-10000.01,0.00015798,2]
[406233871,1771645947597,-10000.01,0.00015798,2]
[406233881,1771646677884,-183.38,0.000148,3]
[406233882,1771646677912,-250.0,0.00014805,2]
[406233883,1771646677948,-600.0,0.00014811,2]
[406233884,1771646677980,-300.0,0.00014811,2]
[406233885,1771646678008,-500.0,0.00014821,2]
[406233886,1771646678036,-2691.22,0.00014829,2]
[406233887,1771646678127,-950.81,0.00014829,2]
[406233889,1771646681028,-600.0,0.00014853,2]
[406233890,1771646681055,-248.1212955,0.00014853,2]
[406233891,1771646681082,-300.0,0.00014853,2]
[406233892,1771646681110,-300.0,0.00014853,2]
[406233893,1771646681141,-300.0,0.00014853,2]
[406233894,1771646681170,-1503.767409,0.00014879,2]
[406233896,1771646681258,-3496.232591,0.00014879,2]
[406233898,1771646686973,-195.0,0.00014937,2]
[406233899,1771646687000,-2643.59,0.00015053,2]
[406233900,1771646687028,-275.0,0.00015053,2]
[406233901,1771646687059,-195.0,0.00015116,2]
[406233903,1771646687085,-195.0,0.00015116,2]
[406233905,1771646687112,-1011.09601826,0.00015258,2]
[406233906,1771646687138,-168.51600304,0.00015395,2]
[406233907,1771646687247,-633.6059574,0.00015395,2]
[406233924,1771647031962,-166.66,0.00014138,2]
[406233925,1771647031973,-195.0,0.00014138,2]
[406233926,1771647031982,-267.0,0.00014138,2]
[406233927,1771647031992,-195.0,0.00014287,2]
[406233928,1771647032003,-190.4662929,0.00014337,2]
[406233929,1771647032014,-4.5337071,0.00014337,2]
[406233930,1771647032023,-166.66,0.00014435,2]
[406233931,1771647032032,-2050.43502043,0.00014561,2]
[406233932,1771647032044,-1000.0,0.00014561,2]
[406233933,1771647032064,-10809.53497957,0.00014561,2]
[406233935,1771647032073,-2088.19,0.00014687,2]
[406233937,1771647032083,-166.66,0.00014733,2]
[406233939,1771647032092,-250.0,0.00015,2]
[406233941,1771647032101,-166.66,0.00015031,2]
[406233943,1771647032110,-183.64,0.0001526,2]
[406233945,1771647032120,-150.41557459,0.00015295,2]
[406233947,1771647032129,-150.0,0.00015295,2]
[406233949,1771647032139,-166.66,0.00015328,2]
[406233951,1771647032148,-300.0,0.00015393,2]
[406233953,1771647032158,-1200.0,0.00015393,2]
[406233955,1771647032167,-300.0,0.00015394,2]
[406233957,1771647032176,-9366.3840426,0.00015395,2]
[406233959,1771647032185,-150.99,0.00015395,2]
[406233961,1771647032195,-300.0,0.0001547,2]
[406233963,1771647032204,-41631.97492146,0.00015471,2]
[406233965,1771647032213,-545.40134564,0.00015471,2]
[406233967,1771647032222,-168.51600304,0.00015548,2]
[406233969,1771647032232,-2077.18337259,0.00015548,2]
[406233971,1771647032243,-538.44662741,0.00015548,2]
[406233973,1771647032252,-413.55337259,0.00015548,2]
[406233997,1771647038025,-1318.16662741,0.00015548,2]
[406233998,1771647038036,-150.99,0.00015548,2]
[406233999,1771647038046,-743.03964673,0.00015552,2]
[406234000,1771647038056,-195.0,0.00015552,2]
[406234001,1771647038066,-300.0,0.00015552,2]
[406234002,1771647038075,-150.04229698,0.00015552,2]
[406234003,1771647038085,-300.06077373,0.00015552,2]
[406234004,1771647038094,-500.0,0.00015552,2]
[406234005,1771647038104,-600.0,0.00015552,2]
[406234006,1771647038113,-300.0,0.00015552,2]
[406234007,1771647038123,-5000.0,0.00015552,2]
[406234008,1771647038133,-300.0,0.00015552,2]
[406234009,1771647038142,-250.0,0.00015552,2]
[406234010,1771647038152,-195.0,0.00015552,2]
[406234011,1771647038161,-2696.5167,0.00015571,2]
[406234012,1771647038171,-33217.92,0.00015573,2]
[406234013,1771647038180,-263.58,0.000156,2]
[406234014,1771647038190,-166.66,0.00015626,2]
[406234015,1771647038203,-80731.0,0.00015671,2]
[406234016,1771647038212,-200.94601632,0.00015697,2]
[406234017,1771647038222,-361.67462856,0.00015697,2]
[406234018,1771647038233,-500.0,0.00015697,2]
[406234019,1771647038242,-500.0,0.00015697,2]
[406234020,1771647038252,-500.0,0.00015697,2]
[406234021,1771647038261,-500.0,0.00015697,2]
[406234022,1771647038271,-500.0,0.00015697,2]
[406234023,1771647038280,-500.0,0.00015697,2]
[406234024,1771647038290,-500.0,0.00015697,2]
[406234025,1771647038299,-500.0,0.00015697,2]
[406234026,1771647038308,-500.0,0.00015697,2]
[406234027,1771647038318,-500.0,0.00015697,2]
[406234028,1771647038327,-500.0,0.00015697,2]
[406234029,1771647038336,-500.0,0.00015697,2]
[406234030,1771647038346,-500.0,0.00015697,2]
[406234031,1771647038358,-500.0,0.00015697,2]
[406234032,1771647038367,-500.0,0.00015697,2]
[406234033,1771647038377,-500.0,0.00015697,2]
[406234034,1771647038386,-415.02027077,0.00015697,2]
[406234036,1771647038398,-500.0,0.00015697,2]
[406234038,1771647038408,-500.0,0.00015697,2]
[406234040,1771647038417,-1422.04556704,0.00015698,2]
[406234042,1771647038427,-27709.67182445,0.00015698,2]
[406234044,1771647038436,-168.51600304,0.000157,2]
[406234045,1771647038446,-628.48505003,0.00015736,2]
[406234047,1771647038456,-500.0,0.00015797,2]
[406234048,1771647038467,-500.0,0.00015797,2]
[406234049,1771647038476,-500.0,0.00015797,2]
[406234050,1771647038486,-500.0,0.00015797,2]
[406234051,1771647038496,-500.0,0.00015797,2]
[406234052,1771647038505,-1000.0,0.00015798,2]
[406234053,1771647038515,-301742.3318,0.00015798,2]
[406234054,1771647038528,-3045.8235,0.00015798,2]
[406234055,1771647038538,-32860.742,0.00015798,2]
[406234056,1771647038547,-6716.3887,0.00015798,2]
[406234057,1771647038556,-1000.0,0.00015838,2]
[406234058,1771647038566,-226.2421007,0.00015897,2]
[406234059,1771647038575,-500.0,0.000159,2]
[406234060,1771647038585,-666.0,0.00015999,2]
[406234061,1771647038597,-150.0,0.00016,2]
[406234062,1771647038607,-54000.0,0.00016,2]
[406234063,1771647038617,-522.0,0.00016,2]
[406234064,1771647038626,-41631.97492146,0.00016003,2]
[406234065,1771647038635,-200.0,0.00016074,2]
[406234066,1771647038645,-597.51516709,0.00016074,2]
[406234067,1771647038654,-151.0,0.00016074,2]
[406234068,1771647038664,-151.0,0.00016074,2]
[406234069,1771647038673,-151.0,0.00016074,2]
[406234070,1771647038683,-151.0,0.00016074,2]
[406234071,1771647038692,-151.0,0.00016074,2]
[406234072,1771647038702,-151.0,0.00016074,2]
[406234073,1771647038711,-500.0,0.00016074,2]
[406234074,1771647038721,-500.0,0.00016074,2]
[406234075,1771647038730,-151.0,0.00016074,2]
[406234076,1771647038740,-513.17312972,0.00016074,2]
[406234077,1771647038749,-151.0,0.00016074,2]
[406234078,1771647038758,-151.0,0.00016074,2]
[406234079,1771647038768,-151.0,0.00016074,2]
[406234080,1771647038777,-151.0,0.00016074,2]
[406234081,1771647038789,-151.0,0.00016074,2]
[406234082,1771647038798,-151.0,0.00016074,2]
[406234083,1771647038807,-151.0,0.00016074,2]
[406234084,1771647038816,-151.0,0.00016074,2]
[406234085,1771647038826,-151.0,0.00016074,2]
[406234086,1771647038835,-151.0,0.00016074,2]
[406234087,1771647038844,-151.0,0.00016074,2]
[406234088,1771647038854,-151.0,0.00016074,2]
[406234089,1771647038863,-151.0,0.00016074,2]
[406234090,1771647038873,-151.0,0.00016074,2]
[406234091,1771647038882,-158.28068058,0.00016074,2]
[406234092,1771647038891,-542.30573458,0.00016074,2]
[406234093,1771647038900,-500.0,0.00016083,2]
[406234094,1771647038910,-500.0,0.00016083,2]
[406234095,1771647038919,-568.06839045,0.00016083,2]
[406234096,1771647038929,-500.0,0.00016083,2]
[406234097,1771647038938,-500.0,0.00016083,2]
[406234098,1771647038947,-500.0,0.00016083,2]
[406234099,1771647038957,-500.0,0.00016083,2]
[406234100,1771647038966,-500.0,0.00016083,2]
[406234101,1771647038975,-500.0,0.00016083,2]
[406234102,1771647038984,-500.0,0.00016083,2]
[406234103,1771647038993,-500.0,0.00016083,2]
[406234104,1771647039003,-500.0,0.00016083,2]
[406234105,1771647039012,-500.0,0.00016083,2]
[406234106,1771647039021,-500.0,0.00016083,2]
[406234107,1771647039031,-500.0,0.00016083,2]
[406234108,1771647039040,-500.0,0.00016083,2]
[406234109,1771647039049,-500.0,0.00016083,2]
[406234110,1771647039059,-500.0,0.00016083,2]
[406234111,1771647039068,-9999.99,0.00016116,2]
[406234112,1771647039077,-41631.97492146,0.0001627,2]
[406234113,1771647039086,-200.0,0.0001637,2]
[406234114,1771647039095,-500.0,0.00016431,2]
[406234115,1771647039104,-277.91,0.00016438,30]
[406234116,1771647039113,-387.0,0.00016496,2]
[406234117,1771647039122,-300.0,0.00016535,2]
[406234118,1771647039132,-41631.97492146,0.00016536,2]
[406234119,1771647039141,-510.0,0.00016599,2]
[406234120,1771647039150,-200.0,0.00016622,2]
[406234121,1771647039159,-545.40134563,0.00016686,2]
[406234122,1771647039168,-2466.07,0.00016701,2]
[406234123,1771647039178,-216.97896444,0.00016721,2]
[406234124,1771647039187,-41631.97492146,0.00016802,2]
[406234125,1771647039196,-300.0,0.0001684,2]
[406234126,1771647039206,-420.0,0.00016842,2]
[406234127,1771647039215,-174.61919141,0.00016871,2]
[406234128,1771647039224,-500.0,0.00016871,2]
[406234129,1771647039234,-500.0,0.00016871,2]
[406234130,1771647039244,-222.20283765,0.00016871,2]
[406234131,1771647039254,-500.0,0.00016871,2]
[406234132,1771647039264,-500.0,0.00016871,2]
[406234133,1771647039274,-500.0,0.00016871,2]
[406234134,1771647039285,-500.0,0.00016871,2]
[406234135,1771647039295,-500.0,0.00016871,2]
[406234136,1771647039305,-250.0,0.00016871,2]
[406234137,1771647039315,-500.0,0.00016871,2]
[406234138,1771647039326,-254.8861323,0.00016871,2]
[406234139,1771647039335,-500.0,0.00016871,2]
[406234140,1771647039344,-500.0,0.00016871,2]
[406234141,1771647039354,-500.0,0.00016871,2]
[406234142,1771647039363,-693.3919763,0.00016871,2]
[406234143,1771647039373,-366.28348294,0.00016871,2]
[406234144,1771647039382,-1680.0,0.00016925,2]
[406234145,1771647039391,-719.04747942,0.00016926,2]
[406234146,1771647039401,-200.0,0.00016933,2]
[406234147,1771647039410,-200.0,0.00016933,2]
[406234148,1771647039419,-150.0,0.00016969,2]
[406234149,1771647039429,-687.0,0.00016974,2]
[406234150,1771647039440,-745.65223616,0.00016981,2]
[406234151,1771647039450,-500.0,0.00017,2]
[406234152,1771647039459,-300.0,0.00017,2]
[406234153,1771647039468,-1000.0,0.00017026,2]
[406234154,1771647039478,-1000.0,0.00017026,2]
[406234155,1771647039487,-1000.0,0.00017026,2]
[406234156,1771647039496,-1000.0,0.00017026,2]
[406234157,1771647039505,-773.2413689,0.00017036,2]
[406234158,1771647039514,-41631.97492146,0.00017068,2]
[406234159,1771647039525,-801.85129955,0.00017091,2]
[406234160,1771647039534,-162.74,0.000171,2]
[406234161,1771647039544,-831.51979763,0.00017146,2]
[406234162,1771647039553,-500.0,0.00017165,2]
[406234163,1771647039562,-200.0,0.0001717,2]
[406234164,1771647039572,-862.28603014,0.00017201,2]
[406234165,1771647039582,-894.19061326,0.00017256,2]
[406234166,1771647039593,-927.27566595,0.00017311,2]
[406234167,1771647039602,-41631.97492146,0.00017335,2]
[406234168,1771647039823,-961.58486559,0.00017366,2]
[406234169,1771647039832,-181.08010149,0.00017419,2]
[406234170,1771647039841,-997.16350561,0.00017421,2]
[406234171,1771647039850,-41631.97492146,0.00017601,2]
[406234172,1771647039859,-37281.85411756,0.00017661,2]
[406234173,1771647039869,-296.0,0.00017777,2]
[406234174,1771647039878,-873.04835075,0.0001779,2]
[406234175,1771647039887,-500.0,0.00017799,2]
[406234176,1771647039896,-441.58580343,0.00017799,2]
[406234177,1771647039905,-515.66152954,0.00017799,2]
[406234178,1771647039913,-160.47207745,0.00017799,2]
[406234179,1771647039922,-500.0,0.00017799,2]
[406234180,1771647039931,-500.0,0.00017799,2]
[406234181,1771647039940,-500.0,0.00017799,2]
[406234182,1771647039952,-361.37968334,0.00017799,2]
[406234183,1771647039961,-480780.9454873,0.000178,2]
[406234184,1771647039969,-587.0,0.00017806,2]
[406234185,1771647039978,-822.17856688,0.00017808,2]
[406234186,1771647039987,-822.17856688,0.00017808,2]
[406234187,1771647039996,-822.17856688,0.00017808,2]
[406234188,1771647040005,-822.17856688,0.00017808,2]
[406234189,1771647040015,-822.17856688,0.00017808,2]
[406234191,1771647040023,-822.17856688,0.00017808,2]
[406234192,1771647040032,-822.17856688,0.00017808,2]
[406234193,1771647040042,-822.17856688,0.00017808,2]
[406234194,1771647040051,-822.17856688,0.00017808,2]
[406234195,1771647040060,-822.17856688,0.00017808,2]
[406234196,1771647040070,-822.17856688,0.00017808,2]
[406234197,1771647040079,-822.17856688,0.00017808,2]
[406234198,1771647040089,-822.17856688,0.00017808,2]
[406234199,1771647040098,-822.17856688,0.00017808,2]
[406234200,1771647040109,-822.17856688,0.00017808,2]
[406234201,1771647040119,-822.17856688,0.00017808,2]
[406234202,1771647040129,-822.17856688,0.00017808,2]
[406234203,1771647040140,-822.17856688,0.00017808,2]
[406234204,1771647040150,-800.0,0.00017808,2]
[406234205,1771647040160,-1000.0,0.00017818,2]
[406234206,1771647040169,-164.17122,0.0001782,2]
[406234207,1771647040178,-164.17122,0.0001782,2]
[406234208,1771647040187,-1014.91673742,0.00017849,2]
[406234209,1771647040196,-200.0,0.00017855,2]
[406234210,1771647040205,-500.0,0.00017856,2]
[406234211,1771647040214,-200.0,0.00017856,2]
[406234212,1771647040223,-41631.97492146,0.00017867,2]
[406234213,1771647040233,-166.88843163,0.00017873,2]
[406234214,1771647040242,-307.71196301,0.00017873,2]
[406234215,1771647040251,-168.71198045,0.00017873,2]
[406234216,1771647040260,-246.364609,0.00017873,2]
[406234217,1771647040269,-165.27434071,0.00017873,2]
[406234218,1771647040278,-503.5027165,0.00017873,2]
[406234219,1771647040288,-230.31122448,0.00017873,2]
[406234220,1771647040297,-500.0,0.00017873,2]
[406234221,1771647040306,-501.38512914,0.00017873,2]
[406234222,1771647040315,-500.41653761,0.00017873,2]
[406234223,1771647040324,-501.37835228,0.00017873,2]
[406234224,1771647040333,-184.37223932,0.00017873,2]
[406234225,1771647040342,-162.93997784,0.00017873,2]
[406234226,1771647040351,-500.95052506,0.00017873,2]
[406234227,1771647040361,-503.18537404,0.00017873,2]
[406234228,1771647040370,-501.05660533,0.00017873,2]
[406234229,1771647040380,-500.0,0.00017873,2]
[406234230,1771647040389,-500.0,0.00017873,2]
[406234231,1771647040398,-500.0,0.00017873,2]
[406234232,1771647040409,-500.0,0.00017873,2]
[406234233,1771647040419,-500.0,0.00017873,2]
[406234234,1771647040430,-500.0,0.00017873,2]
[406234235,1771647040440,-502.63635996,0.00017873,2]
[406234236,1771647040450,-500.31194275,0.00017873,2]
[406234237,1771647040458,-500.38903412,0.00017873,2]
[406234238,1771647040468,-500.18211712,0.00017873,2]
[406234239,1771647040476,-500.0,0.00017873,2]
[406234240,1771647040486,-501.82753949,0.00017873,2]
[406234241,1771647040495,-167.41603795,0.00017873,2]
[406234242,1771647040506,-503.58870457,0.00017873,2]
[406234243,1771647040516,-501.02670572,0.00017873,2]
[406234244,1771647040530,-164.4744294,0.00017873,2]
[406234245,1771647040540,-493.47361044,0.00017873,2]
[406234246,1771647040550,-1000.0,0.00017884,2]
[406234247,1771647040559,-192.94,0.00017899,2]
[406234248,1771647040569,-160.0,0.000179,2]
[406234249,1771647040578,-2278.557,0.000179,2]
[406234250,1771647040587,-177.134,0.000179,2]
[406234251,1771647040596,-545.40134563,0.000179,2]
[406234252,1771647040606,-212.22497024,0.000179,2]
[406234253,1771647040616,-3187.37121813,0.000179,2]
[406234254,1771647040624,-158.67183296,0.000179,2]
[406234255,1771647040633,-1101.0,0.000179,2]
[406234256,1771647040643,-340.0,0.00017925,2]
[406234257,1771647040652,-158.8695064,0.0001794,2]
[406234258,1771647040661,-131480.7339807,0.0001794,2]
[406234259,1771647040670,-1166.0,0.00017967,2]
[406234260,1771647040679,-500.0,0.0001797,2]
[406234261,1771647040689,-1000.0,0.0001797,2]
[406234262,1771647040698,-905.22771213,0.0001797,2]
[406234263,1771647040707,-1000.0,0.0001797,2]
[406234264,1771647040716,-1743.9005063,0.0001797,2]
[406234265,1771647040727,-1000.0,0.0001797,2]
[406234266,1771647040736,-500.0,0.0001797,2]
[406234267,1771647040745,-500.0,0.00017973,2]
[406234268,1771647040755,-500.0,0.00017973,2]
[406234269,1771647040763,-500.0,0.00017973,2]
[406234270,1771647040773,-500.0,0.00017973,2]
[406234271,1771647040782,-500.0,0.00017973,2]
[406234272,1771647040791,-500.0,0.00017973,2]
[406234273,1771647040800,-500.0,0.00017973,2]
[406234274,1771647040809,-500.0,0.00017973,2]
[406234275,1771647040818,-500.0,0.00017973,2]
[406234276,1771647040827,-500.50855099,0.00017973,2]
[406234277,1771647040836,-500.0,0.00017973,2]
[406234278,1771647040845,-568.38984139,0.00017973,2]
[406234279,1771647040854,-500.0,0.00017973,2]
[406234280,1771647040864,-500.0,0.00017973,2]
[406234281,1771647040873,-500.0,0.00017973,2]
[406234282,1771647040883,-500.62983422,0.00017973,2]
[406234283,1771647040892,-500.0,0.00017973,2]
[406234284,1771647040901,-500.0,0.00017973,2]
[406234285,1771647040910,-342.76331381,0.00017973,2]
[406234286,1771647040919,-500.0,0.00017973,2]
[406234287,1771647040930,-500.0,0.00017973,2]